bitfinex/quotes_ETHUSD_20240715
["timestamp","ask_amount","ask_price","bid_price","bid_amount"]
[1721028214368,2.61,3360.2,3359.8,0.04397506]
[1721028214735,2.61,3360.2,3359.7,1.7]
[1721028214940,2.61,3360.2,3359.4,1.7]
[1721028215174,2.61,3360.2,3359.8,0.04397506]
[1721028215373,2.61,3360.2,3359.4,1.87]
[1721028216005,2.61,3360.2,3359.5,0.04409343]
[1721028216540,2.3455,3360.1,3359.5,0.04409343]
[1721028220397,2.4026,3359.9,3359.5,0.04409343]
[1721028220883,2.4026,3359.9,3359.4,1.7]
[1721028221850,2.4026,3359.9,3359.4,1.87]
[1721028222288,2.4026,3359.9,3359.5,0.04416386]
[1721028226768,5.0126,3359.9,3359.5,0.04416386]
[1721028227175,5.0126,3359.9,3359.4,1.87]
[1721028227900,5.0126,3359.9,3359.5,0.04418734]
[1721028228104,5.0126,3359.9,3359.0,1.7]
[1721028228414,2.4026,3359.8,3359.1,0.04434521]
[1721028228608,5.4026,3359.8,3359.1,0.04434521]
[1721028228909,2.61,3359.5,3359.1,0.04434521]
[1721028229071,2.4026,3359.3,3358.4,1.7]
[1721028229266,2.4026,3359.3,3358.5,0.04457097]
[1721028229267,2.61,3359.1,3358.5,0.04457097]
[1721028229472,2.4026,3358.9,3358.5,0.04457097]
[1721028229703,2.4026,3358.9,3358.3,1.7]
[1721028229905,2.4026,3358.9,3358.4,0.04324706]
[1721028230217,2.4026,3358.9,3357.7,3.14708185]
[1721028230417,2.4026,3358.9,3358.3,1.7]
[1721028230915,2.4026,3358.9,3358.4,0.04324706]
[1721028231110,2.4026,3358.9,3358.3,1.7]
[1721028231313,2.4026,3358.9,3358.4,0.04324706]
[1721028231581,0.04569152,3358.8,3358.1,1.7]
[1721028231736,0.04569152,3358.8,3357.9,1.7]
[1721028231737,3.15482915,3358.7,3357.9,1.7]
[1721028231898,3.15482915,3358.7,3358.0,0.04340504]
[1721028231899,0.04569152,3358.6,3358.0,0.04340504]
[1721028232100,2.4413,3358.5,3358.0,0.04340504]
[1721028232423,2.4413,3358.5,3357.7,2.16671185]
[1721028232633,2.4413,3358.5,3358.1,0.04336554]
[1721028232828,0.04569152,3358.4,3357.7,2.16671185]
[1721028233125,0.04569152,3358.4,3357.8,0.04348404]
[1721028233687,2.4413,3358.5,3357.8,0.04348404]
[1721028234329,2.4413,3358.5,3357.8,0.51483244]
[1721028234623,2.4413,3358.5,3358.1,1.7]
[1721028236183,2.4413,3358.5,3358.2,0.04367093]
[1721028237632,3.0,3358.9,3358.2,0.04367093]
[1721028237856,5.4398,3358.9,3358.5,1.7]
[1721028238221,2.4398,3358.9,3358.5,1.87436709]
[1721028238650,2.4398,3358.9,3358.6,0.04347835]
[1721028238956,2.4398,3358.9,3358.5,1.87436709]
[1721028239163,2.4398,3358.9,3358.6,0.04347835]
[1721028239659,2.4398,3358.9,3358.5,1.7]
[1721028240660,2.4398,3358.9,3358.6,0.04347835]
[1721028241030,2.4398,3358.9,3358.5,1.7]
[1721028241355,2.4398,3358.9,3358.6,0.04347835]
[1721028241586,2.4398,3358.9,3358.5,1.7]
[1721028242057,2.4398,3358.9,3358.6,0.04347835]
[1721028242431,2.87995328,3358.9,3357.8,0.62233214]
[1721028242761,2.87995328,3358.9,3357.0,0.46694628]
[1721028242762,2.3731,3357.8,3357.0,0.46694628]
[1721028242930,2.3731,3357.8,3356.8,1.7]
[1721028243119,2.3731,3357.8,3356.5,0.62233214]
[1721028243120,2.3731,3357.8,3357.3,1.7]
[1721028243858,2.3731,3357.8,3356.9,0.17]
[1721028244064,5.3731,3357.8,3356.9,0.17]
[1721028244854,2.61,3357.5,3356.9,0.17]
[1721028245056,2.4146,3357.4,3356.9,0.17]
[1721028246547,0.04569152,3357.3,3356.3,4.69]
[1721028247297,4.902,3357.1,3356.2,1.7]
[1721028247640,4.902,3357.1,3356.1,1.7]
[1721028248055,3.0,3357.0,3356.1,1.7]
[1721028248260,3.0,3357.0,3355.8,3.14891394]
[1721028248473,3.0,3357.0,3356.0,1.7]
[1721028248774,3.0,3357.0,3355.9,0.47084995]
[1721028248978,3.0,3357.0,3356.1,1.7]
[1721028249341,3.0,3357.0,3355.9,0.47084995]
[1721028249671,3.0,3357.0,3356.0,1.7]
[1721028249872,3.0,3357.0,3356.1,0.26379039]
[1721028252536,3.0,3357.0,3356.2,37.97]
[1721028252740,4.902,3357.1,3356.8,1.7]
[1721028252741,2.61,3357.1,3356.8,1.7]
[1721028252957,2.3346,3357.5,3356.8,1.7]
[1721028253183,2.3346,3357.5,3356.9,0.17]
[1721028253402,6.46889711,3357.7,3356.9,0.17]
[1721028253403,6.46889711,3357.7,3357.2,1.7]
[1721028253574,2.3346,3357.9,3357.2,1.7]
[1721028253773,2.3346,3357.9,3357.3,0.03864541]
[1721028254095,2.3346,3357.9,3357.4,0.17386454]
[1721028254892,2.3346,3357.9,3357.5,0.03856639]
[1721028255273,2.3346,3357.9,3357.2,1.7]
[1721028255471,2.61,3357.8,3357.2,1.7]
[1721028255864,2.61,3357.8,3357.3,0.03864541]
[1721028256275,2.61,3357.8,3357.2,1.7]
[1721028256507,2.61,3357.8,3357.4,0.0386059]
[1721028256669,2.61,3357.8,3357.3,0.20864541]
[1721028256875,2.61,3357.8,3357.5,0.03856639]
[1721028257060,2.61,3357.8,3357.4,0.0386059]
[1721028257256,2.61,3357.8,3357.6,0.03852688]
[1721028257471,2.61,3357.8,3357.5,0.03856639]
[1721028257688,2.61,3357.8,3357.3,0.17]
[1721028257883,2.61,3357.8,3357.6,0.03852688]
[1721028258203,2.61,3357.8,3357.4,0.187]
[1721028258505,2.61,3357.8,3357.2,1.7]
[1721028258661,2.3346,3357.9,3357.5,0.03856639]
[1721028258662,3.0,3357.7,3357.5,0.03856639]
[1721028258860,2.61,3357.6,3356.6,1.7]
[1721028259360,2.61,3357.6,3356.7,0.038832]
[1721028259573,2.61,3357.6,3356.8,0.1738832]
[1721028259804,2.4092,3357.5,3356.9,0.03875294]
[1721028259968,5.4092,3357.5,3356.9,0.03875294]
[1721028260167,5.4092,3357.5,3356.5,1.7]
[1721028260501,2.61,3357.1,3356.6,0.03890975]
[1721028262689,2.2968,3357.0,3356.6,0.03890975]
[1721028263091,2.2968,3357.0,3356.5,1.7]
[1721028263788,2.49,3357.8,3356.6,0.09854522]
[1721028264704,2.49,3357.8,3357.0,1.7]
[1721028265131,2.49,3357.8,3357.1,0.03876145]
[1721028265417,2.49,3357.8,3357.0,1.7]
[1721028266004,2.49,3357.8,3357.1,0.03876145]
[1721028267214,2.61,3357.5,3357.1,0.03876145]
[1721028267505,2.4054,3357.4,3357.1,0.03876145]
[1721028267714,2.4054,3357.4,3357.0,1.7]
[1721028267920,2.4054,3357.4,3357.2,0.03872193]
[1721028268072,2.4054,3357.4,3357.1,0.03876145]
[1721028268271,2.4054,3357.4,3357.3,0.03868241]
[1721028268488,2.4054,3357.4,3357.2,0.03872193]
[1721028268773,2.4054,3357.4,3357.3,0.03868241]
[1721028269004,2.4054,3357.4,3357.0,1.7]
[1721028269373,2.4054,3357.4,3357.1,0.03876145]
[1721028269584,2.4054,3357.4,3357.0,1.7]
[1721028269812,2.4054,3357.4,3357.1,0.03876145]
[1721028270318,2.4054,3357.4,3357.0,1.7]
[1721028270608,2.4054,3357.4,3357.1,0.03876145]
[1721028271105,2.4054,3357.4,3357.0,1.7]
[1721028271484,2.4054,3357.4,3357.2,0.03872193]
[1721028271684,2.4054,3357.4,3357.1,0.03876145]
[1721028271894,2.4054,3357.4,3357.3,0.03868241]
[1721028272214,2.4054,3357.4,3357.1,0.17387614]
[1721028272574,2.4054,3357.4,3357.2,0.03872193]
[1721028273211,2.4054,3357.4,3357.0,1.7]
[1721028273398,2.4054,3357.4,3357.3,0.03868241]
[1721028273609,2.4054,3357.4,3357.0,1.7]
[1721028273778,2.4054,3357.4,3357.1,0.17]
[1721028273975,2.4054,3357.4,3357.2,0.03872193]
[1721028276509,2.4054,3357.4,3357.0,1.7]
[1721028276837,2.4054,3357.4,3357.1,0.03871335]
[1721028277295,2.4054,3357.4,3357.0,1.7]
[1721028277497,2.4054,3357.4,3357.1,0.03871335]
[1721028277727,2.4054,3357.4,3357.0,1.7]
[1721028277913,2.4054,3357.4,3357.1,0.03871335]
[1721028278126,2.4054,3357.4,3357.0,1.7]
[1721028278296,2.4054,3357.4,3357.1,0.03871335]
[1721028278497,2.4054,3357.4,3357.0,1.87]
[1721028278898,2.4054,3357.4,3357.1,0.03871335]
[1721028279345,2.4054,3357.4,3357.0,1.87]
[1721028279499,2.4054,3357.4,3357.2,0.03817466]
[1721028279695,2.4054,3357.4,3357.1,0.03821418]
[1721028279900,2.4054,3357.4,3357.3,0.03813514]
[1721028280125,2.4054,3357.4,3357.0,1.7]
[1721028280438,2.4054,3357.4,3357.1,0.03821418]
[1721028280946,2.4054,3357.4,3357.2,0.03817466]
[1721028281097,2.4054,3357.4,3357.0,1.7]
[1721028281534,2.4054,3357.4,3357.1,0.03816238]
[1721028282032,2.4054,3357.4,3357.2,0.03812287]
[1721028282415,2.4054,3357.4,3357.0,1.7]
[1721028282626,2.4054,3357.4,3357.3,0.03808335]
[1721028282957,2.4054,3357.4,3357.0,1.7]
[1721028283128,2.4054,3357.4,3357.1,0.20816485]
[1721028285333,2.4054,3357.4,3357.1,0.03816485]
[1721028285545,2.4054,3357.4,3357.0,1.7]
[1721028285763,2.4054,3357.4,3357.1,0.03816485]
[1721028285916,2.4054,3357.4,3357.0,1.7]
[1721028286121,2.4054,3357.4,3357.1,0.03816485]
[1721028286337,2.4054,3357.4,3357.0,1.7]
[1721028286518,2.4054,3357.4,3357.1,0.03816485]
[1721028286718,2.4054,3357.4,3357.0,1.87]
[1721028287029,2.4054,3357.4,3357.1,0.03816485]
[1721028287378,2.4054,3357.4,3357.0,1.7]
[1721028287727,2.4054,3357.4,3357.1,0.03816485]
[1721028287937,2.4054,3357.4,3357.0,1.7]
[1721028288140,2.4054,3357.4,3357.1,0.03816732]
[1721028288350,2.4054,3357.4,3357.0,1.7]
[1721028288548,2.4054,3357.4,3357.1,0.03816732]
[1721028288756,2.4054,3357.4,3357.0,1.7]
[1721028288936,2.4054,3357.4,3357.1,0.03816732]
[1721028289268,2.4054,3357.4,3357.0,1.7]
[1721028289438,2.4054,3357.4,3357.2,0.0381278]
[1721028289644,2.4054,3357.4,3357.1,0.03816732]
[1721028289849,2.4054,3357.4,3357.3,0.03808828]
[1721028290058,2.4054,3357.4,3357.2,0.0381278]
[1721028290240,2.4054,3357.4,3357.3,0.03808828]
[1721028290458,2.4054,3357.4,3357.0,1.7]
[1721028290862,2.4054,3357.4,3357.1,0.03816732]
[1721028291166,2.4054,3357.4,3357.0,1.7]
[1721028291365,2.4054,3357.4,3357.1,0.03816732]
[1721028291570,2.4054,3357.4,3357.0,1.7]
[1721028291795,2.61,3357.1,3356.6,0.62231063]
[1721028292086,2.4337,3357.0,3356.2,0.62231063]
[1721028292281,2.4337,3357.0,3356.3,2.58987116]
[1721028292436,2.93807,3357.0,3356.4,1.03594846]
[1721028292638,2.93807,3357.0,3356.3,1.55393892]
[1721028292937,2.93807,3357.0,3356.4,1.03595943]
[1721028293136,2.93807,3357.0,3356.3,1.55393399]
[1721028293333,2.93807,3357.0,3356.3,1.5539466]
[1721028293558,2.93807,3357.0,3356.4,1.0359644]
[1721028293777,2.93807,3357.0,3356.3,1.5539466]
[1721028294089,2.93807,3357.0,3356.4,1.0359544]
[1721028294394,2.93807,3357.0,3356.3,1.55393122]
[1721028294731,2.93807,3357.0,3356.2,1.55393122]
[1721028294936,2.93807,3357.0,3356.1,2.32414667]
[1721028294937,2.4337,3357.0,3356.3,1.03596609]
[1721028295162,2.4337,3357.0,3356.2,1.55394915]
[1721028295368,2.4337,3357.0,3356.1,3.08990907]
[1721028295578,2.4337,3357.0,3356.2,2.58995901]
[1721028295756,2.4337,3357.0,3356.3,1.0359836]
[1721028295957,2.4337,3357.0,3356.2,1.55397541]
[1721028296157,2.4337,3357.0,3356.3,1.03597792]
[1721028296470,2.4337,3357.0,3356.1,3.08990907]
[1721028296638,2.4337,3357.0,3356.2,2.58990058]
[1721028296838,2.4337,3357.0,3356.3,1.03596023]
[1721028297037,2.4337,3357.0,3356.2,1.55394623]
[1721028297268,2.4337,3357.0,3356.3,1.03596443]
[1721028297477,2.4337,3357.0,3356.2,1.55396711]
[1721028297676,2.4337,3357.0,3356.3,1.03597982]
[1721028297842,2.4337,3357.0,3356.2,2.40897673]
[1721028298043,2.4337,3357.0,3356.3,1.03596025]
[1721028298269,2.4337,3357.0,3356.2,2.40897673]
[1721028298456,2.4337,3357.0,3356.4,0.03605995]
[1721028298657,2.4337,3357.0,3356.3,0.03609949]
[1721028298968,2.4337,3357.0,3356.4,0.03605995]
[1721028299142,2.4337,3357.0,3356.2,2.40897673]
[1721028299485,2.4337,3357.0,3356.3,0.03609949]
[1721028301400,3.00056246,3357.0,3356.3,0.03609949]
[1721028301548,6.00056246,3357.0,3356.3,0.03609949]
[1721028301889,3.00232455,3356.9,3356.3,0.03609949]
[1721028302040,3.0,3356.8,3356.3,0.03609949]
[1721028302242,3.0,3356.8,3356.0,1.55396311]
[1721028302436,2.3774,3356.9,3356.4,0.03506464]
[1721028302684,2.3774,3356.9,3356.0,1.55396311]
[1721028302890,0.86123246,3356.9,3356.5,0.0350251]
[1721028303042,0.86123246,3356.9,3356.0,1.55396311]
[1721028303043,2.3774,3356.8,3356.0,1.55396311]
[1721028303244,2.3774,3356.7,3356.6,0.03498557]
[1721028303444,2.42309152,3356.7,3355.9,1.55396311]
[1721028303889,2.42309152,3356.7,3356.0,0.0352228]
[1721028304097,2.3347,3356.5,3356.0,0.0352228]
[1721028304390,2.38039152,3356.5,3356.1,0.03518326]
[1721028304544,2.3347,3356.5,3355.8,2.16705394]
[1721028304742,2.3347,3356.5,3355.9,0.03526235]
[1721028304944,5.3347,3356.5,3355.9,0.03526235]
[1721028305294,2.2912,3356.4,3355.8,0.46705394]
[1721028305496,2.2912,3356.4,3355.4,2.32399555]
[1721028305682,2.2912,3356.4,3355.9,0.03526235]
[1721028305884,2.2912,3356.4,3355.4,3.25416481]
[1721028306084,2.2912,3356.4,3356.0,0.0352228]
[1721028306393,2.3811,3356.3,3356.1,0.03518326]
[1721028306607,2.3811,3356.3,3355.4,1.7]
[1721028306894,2.3811,3356.3,3355.5,1.07163601]
[1721028307092,2.3811,3356.3,3355.6,1.03621545]
[1721028307301,2.3811,3356.3,3355.5,0.03542056]
[1721028307600,2.3811,3356.3,3355.7,0.03534145]
[1721028308699,2.4106,3356.6,3356.2,1.7]
[1721028309110,2.4106,3356.6,3356.3,0.03510417]
[1721028309400,2.4106,3356.6,3356.2,1.7]
[1721028309567,2.4106,3356.6,3356.3,0.03514096]
[1721028309904,2.4106,3356.6,3355.8,1.7]
[1721028310108,2.4106,3356.6,3356.4,0.03510143]
[1721028310408,2.4106,3356.6,3355.8,1.7]
[1721028310608,2.4106,3356.6,3355.9,0.03527829]
[1721028310963,2.3428,3356.5,3355.9,0.03527829]
[1721028311281,2.3428,3356.4,3355.9,0.03527829]
[1721028311674,2.3428,3356.4,3355.8,1.7]
[1721028311877,2.3428,3356.4,3356.0,0.03525591]
[1721028312199,2.3428,3356.4,3356.1,0.03521637]
[1721028312382,2.3428,3356.4,3355.8,1.7]
[1721028312785,2.3428,3356.4,3355.9,0.03529546]
[1721028312987,2.3428,3356.4,3355.8,1.7]
[1721028313368,2.3428,3356.4,3355.9,0.03529546]
[1721028313369,2.61,3356.0,3355.9,0.03529546]
[1721028313570,2.3428,3355.9,3355.2,0.46720052]
[1721028313771,2.38849152,3355.9,3355.3,0.03316907]
[1721028313993,2.3428,3355.8,3354.7,1.7]
[1721028314307,2.3428,3355.8,3354.8,0.73611614]
[1721028314308,2.3428,3355.6,3354.8,0.73611614]
[1721028314512,0.04569152,3355.5,3354.8,0.73611614]
[1721028315016,2.61,3356.0,3354.8,0.73611614]
[1721028315017,2.3428,3355.7,3354.8,0.73611614]
[1721028315310,2.3428,3355.7,3354.8,0.03336691]
[1721028315812,2.38849152,3355.7,3354.8,0.03336691]
[1721028315991,2.38849152,3355.7,3354.5,0.46725398]
[1721028316193,2.61,3355.6,3354.6,0.03344606]
[1721028316394,2.45419152,3355.5,3354.6,0.03344606]
[1721028316593,2.45419152,3355.5,3354.6,0.25351606]
[1721028317313,2.61,3355.2,3354.6,0.03344606]
[1721028317513,2.4085,3355.0,3354.6,0.03344606]
[1721028317812,3.04569152,3355.1,3354.1,2.98]
[1721028317813,2.4085,3354.8,3354.1,2.98]
[1721028317972,3.0,3355.1,3354.2,0.03255383]
[1721028317973,2.4085,3354.6,3354.2,0.03255383]
[1721028321069,2.4085,3354.6,3354.3,1.7]
[1721028321269,2.4085,3354.6,3354.4,0.47125538]
[1721028321500,2.4085,3354.6,3354.4,0.50393316]
[1721028324412,2.4085,3354.6,3354.4,0.03267778]
[1721028324916,2.4085,3354.6,3354.1,2.98]
[1721028325121,2.4085,3354.6,3354.5,0.03235917]
[1721028325276,2.4085,3354.6,3354.1,2.98]
[1721028325477,2.4085,3354.6,3354.5,0.03235917]
[1721028325680,2.64935,3354.6,3354.1,2.98]
[1721028326176,2.64935,3354.6,3354.2,0.03266393]
[1721028326609,2.4085,3354.6,3354.2,0.03266393]
[1721028330474,2.4085,3354.6,3354.2,1.73266393]
[1721028332939,2.4151,3355.4,3354.6,1.7]
[1721028333453,2.4151,3355.4,3355.0,1.7]
[1721028333614,2.4151,3355.4,3355.1,0.438259]
[1721028333806,2.4151,3355.4,3355.2,0.03223756]
[1721028334010,2.4151,3355.4,3355.0,1.7]
[1721028334233,2.4151,3355.4,3355.1,0.03227713]
[1721028335539,6.46889711,3355.9,3355.5,2.68214]
[1721028335840,2.3146,3356.1,3355.6,0.03201446]
[1721028336043,2.3146,3356.1,3355.7,0.44141545]
[1721028336538,2.3146,3356.1,3355.8,0.03193535]
[1721028336944,2.3146,3356.1,3355.7,0.44141545]
[1721028337240,2.3146,3356.1,3355.8,0.03174782]
[1721028337450,2.3146,3356.1,3355.4,1.7]
[1721028338106,2.3146,3356.1,3355.0,1.7]
[1721028338552,2.36029152,3356.1,3355.1,0.03198803]
[1721028339459,2.3146,3356.1,3355.1,0.03198803]
[1721028339630,2.3146,3356.1,3355.2,0.7097168]
[1721028339831,2.3146,3356.1,3355.3,0.0319089]
[1721028340029,2.3146,3356.1,3355.4,1.7]
[1721028340349,2.3146,3356.1,3355.5,0.03182978]
[1721028343252,2.3146,3356.1,3355.6,0.03181714]
[1721028343422,3.19294971,3356.1,3355.0,1.7]
[1721028343627,3.19294971,3356.1,3355.1,0.03201494]
[1721028344342,2.3146,3356.1,3355.1,0.03201494]
[1721028344968,2.36029152,3356.1,3355.1,0.03201494]
[1721028345876,2.3146,3356.1,3355.1,0.03201494]
[1721028347963,5.3146,3356.1,3355.1,0.03201494]
[1721028348142,2.2763,3356.0,3355.1,0.03201494]
[1721028348468,2.2763,3355.8,3354.8,1.7]
[1721028348884,2.2763,3355.7,3354.9,0.03209654]
[1721028349050,2.4467,3355.4,3354.9,0.03209654]
[1721028349243,2.4467,3355.4,3354.4,1.7]
[1721028349575,2.4467,3355.4,3354.5,1.06862121]
[1721028349778,2.4467,3355.4,3354.6,0.60744259]
[1721028350152,2.4467,3355.4,3354.7,0.03219649]
[1721028351782,3.0,3355.8,3354.7,0.03219649]
[1721028351783,0.04569152,3355.3,3354.7,0.03219649]
[1721028351971,2.2772,3355.2,3354.7,0.03219649]
[1721028352152,2.47512853,3355.2,3354.4,1.7]
[1721028352335,2.24740853,3355.2,3354.8,0.03215691]
[1721028352650,2.24740853,3355.2,3354.9,0.03211734]
[1721028352853,2.24740853,3355.2,3354.3,4.38312]
[1721028353055,2.24740853,3355.2,3354.4,0.03235316]
[1721028353265,0.04569152,3355.1,3354.4,0.03235316]
[1721028353442,0.59569152,3355.4,3354.4,0.03235316]
[1721028353636,1.26745886,3355.3,3353.9,2.68344]
[1721028353937,0.59569152,3355.4,3354.2,1.7]
[1721028353938,0.55,3355.4,3354.2,1.7]
[1721028354389,0.55,3355.4,3354.3,0.03239275]
[1721028355287,2.32289152,3355.3,3354.3,0.03239275]
[1721028355580,2.32289152,3355.2,3354.3,0.03239275]
[1721028355764,3.04569152,3355.2,3354.3,0.03239275]
[1721028355936,2.2588,3355.1,3354.3,0.03239275]
[1721028356135,2.30449152,3355.0,3354.3,0.03239275]
[1721028356341,2.30449152,3355.0,3354.3,0.47396803]
[1721028357159,2.2588,3355.0,3354.3,0.47396803]
[1721028357460,0.04569152,3355.2,3354.3,0.03239275]
[1721028357461,2.2588,3354.8,3354.3,0.03239275]
[1721028357681,2.2588,3354.8,3353.9,2.98]
[1721028357879,2.2588,3354.8,3354.4,0.03244246]
[1721028358103,2.2588,3354.8,3353.9,2.98]
[1721028358104,2.30449152,3354.8,3353.9,2.98]
[1721028358290,2.2822,3354.6,3354.5,0.03240288]
[1721028358491,2.2822,3354.6,3353.9,2.98]
[1721028358663,2.2822,3354.6,3354.5,0.03240288]
[1721028358868,2.2822,3354.6,3353.9,2.98]
[1721028359102,2.2822,3354.6,3354.0,0.03260082]
[1721028359895,0.04569152,3354.5,3354.0,0.03260082]
[1721028360309,2.2822,3354.6,3354.0,0.03260082]
[1721028360963,0.04569152,3354.5,3354.0,0.03260082]
[1721028361662,2.2822,3354.6,3353.8,1.7]
[1721028361928,2.2822,3354.6,3354.1,0.03256122]
[1721028362099,2.2822,3354.6,3353.9,3.16847252]
[1721028362299,2.2822,3354.6,3354.2,0.03252163]
[1721028362631,2.2822,3354.6,3354.3,0.03248205]
[1721028362837,2.2822,3354.6,3354.2,1.7]
[1721028363020,2.2822,3354.6,3354.3,0.74510321]
[1721028364532,8.85259711,3354.9,3354.3,0.74510321]
[1721028364695,2.3837,3354.9,3354.4,0.05961497]
[1721028365022,2.3837,3355.3,3354.6,1.7]
[1721028365327,2.3837,3355.3,3354.7,0.03232372]
[1721028367748,2.3837,3355.1,3353.9,0.48510252]
[1721028367955,2.3837,3355.1,3353.9,2.18510252]
[1721028368254,0.04569152,3355.0,3354.0,0.58181181]
[1721028368422,2.3837,3354.9,3354.0,0.58181181]
[1721028368812,0.04569152,3354.8,3354.0,0.58181181]
[1721028369009,2.4153,3354.7,3354.0,0.58181181]
[1721028369628,2.4153,3354.7,3354.0,0.03259225]
[1721028369856,2.4153,3354.9,3353.6,2.16735524]
[1721028370064,2.4153,3354.8,3353.7,3.75294673]
[1721028370248,5.4153,3354.8,3353.8,0.71401986]
[1721028370430,5.4153,3354.8,3354.0,1.7]
[1721028370628,2.4153,3354.8,3354.1,0.03267262]
[1721028378985,6.46889711,3355.0,3354.4,1.7]
[1721028379150,2.4877,3355.2,3354.5,2.68291]
[1721028379353,2.4877,3355.2,3354.6,0.438291]
[1721028379747,2.4877,3355.2,3354.7,0.032489]
[1721028382705,2.53339152,3355.2,3354.7,0.032489]
[1721028382847,2.4877,3355.2,3354.7,0.032489]
[1721028383046,2.4877,3355.2,3354.0,4.38335]
[1721028383356,0.54877,3355.1,3354.1,1.06918818]
[1721028383568,3.54877,3355.1,3354.1,1.73267019]
[1721028383978,3.54877,3355.1,3354.2,1.03649861]
[1721028384181,3.0,3355.1,3354.2,1.03649861]
[1721028384349,2.4877,3355.2,3354.3,0.03260448]
[1721028384746,2.4877,3355.2,3354.3,2.71566448]
[1721028385053,2.4877,3355.2,3354.4,0.0325649]
[1721028385853,2.4877,3355.2,3354.4,2.77522201]
[1721028386054,2.4877,3355.2,3354.5,0.2775222]
[1721028386290,2.4877,3355.2,3354.6,0.03248573]
[1721028386800,2.4877,3355.2,3354.6,2.71535573]
[1721028388277,8.75429711,3355.5,3354.7,2.6828]
[1721028388468,6.46889711,3355.5,3354.9,1.7]
[1721028388664,6.46889711,3355.5,3355.0,2.71485887]
[1721028392434,6.46889711,3355.5,3355.0,0.03231887]
[1721028392921,6.46889711,3355.5,3355.0,2.71486887]
[1721028393124,6.46889711,3355.5,3355.1,0.73370672]
[1721028393333,8.84159711,3355.9,3355.1,0.73370672]
[1721028393489,3.0,3355.8,3355.2,0.03221281]
[1721028393824,8.84159711,3355.9,3355.2,0.03221281]
[1721028394031,8.84159711,3355.9,3355.2,1.58652977]
[1721028394201,8.84159711,3355.9,3355.3,0.56865374]
[1721028394520,8.84159711,3355.9,3355.4,0.03201495]
[1721028395020,8.84159711,3355.9,3355.3,0.56865374]
[1721028395188,8.84159711,3355.9,3355.5,0.03197539]
[1721028395396,8.84159711,3355.9,3355.4,0.03201495]
[1721028395622,8.84159711,3355.9,3355.6,0.03187832]
[1721028395924,8.84159711,3355.9,3355.7,0.03183877]
[1721028396335,8.84159711,3355.9,3355.3,0.56865374]
[1721028396488,8.84159711,3355.9,3355.8,0.03179922]
[1721028396689,8.84159711,3355.9,3355.4,0.61633909]
[1721028396690,5.3727,3355.9,3355.4,0.61633909]
[1721028396885,2.3727,3355.9,3355.5,0.03191788]
[1721028397205,3.0,3356.2,3354.9,1.7]
[1721028397206,2.2813,3355.7,3354.9,1.7]
[1721028397396,2.32699152,3355.7,3355.6,0.03187832]
[1721028397586,2.32699152,3355.7,3354.9,1.7]
[1721028397792,2.32699152,3355.7,3354.6,1.55433433]
[1721028398030,3.6626008,3355.7,3355.0,0.03213772]
[1721028398201,3.0,3355.6,3354.7,1.55433433]
[1721028398388,3.0,3355.6,3355.1,0.03209815]
[1721028398588,3.0,3355.6,3354.6,1.55433433]
[1721028398790,3.0,3355.6,3355.2,0.03205859]
[1721028399031,3.74311157,3355.6,3354.6,1.55463652]
[1721028399195,0.04569152,3355.5,3355.3,0.03201902]
[1721028399402,0.04569152,3355.5,3354.5,4.23753652]
[1721028399647,0.04569152,3355.5,3354.6,1.03644518]
[1721028399800,3.0,3355.6,3354.6,3.01229602]
[1721028400001,0.04569152,3355.5,3354.6,3.01229602]
[1721028400204,2.3866,3355.4,3354.7,0.78740586]
[1721028400532,0.04569152,3355.3,3354.8,0.03221686]
[1721028400946,0.04569152,3355.3,3354.7,0.78740586]
[1721028401106,2.3866,3355.4,3354.9,0.03217729]
[1721028401429,2.3866,3355.4,3354.7,0.78740586]
[1721028401630,2.3866,3355.4,3355.0,0.03213772]
[1721028401840,2.3866,3355.4,3354.6,4.53463652]
[1721028402004,2.3866,3355.4,3355.1,0.03209815]
[1721028402209,2.3866,3355.4,3354.8,1.7]
[1721028402210,3.0,3355.7,3354.8,3.31423425]
[1721028402411,5.3538,3355.9,3355.2,1.73205859]
[1721028402706,5.3538,3355.9,3355.3,0.03204227]
[1721028405335,5.3538,3355.9,3355.3,0.09164588]
[1721028405542,2.3538,3355.9,3355.3,0.09164588]
[1721028405712,2.3538,3355.9,3355.3,0.03204227]
[1721028405928,2.3538,3355.9,3355.4,0.75978332]
[1721028406127,2.3538,3355.9,3355.5,0.03191296]
[1721028407228,0.04569152,3355.8,3355.5,0.03191296]
[1721028407428,0.04569152,3355.8,3355.0,2.68256]
[1721028407727,0.04569152,3355.8,3354.9,4.23693771]
[1721028407920,0.04569152,3355.8,3355.1,0.03206509]
[1721028408856,2.3538,3355.9,3355.1,0.03206509]
[1721028409014,0.04569152,3355.8,3355.1,0.03206509]
[1721028409216,2.3783,3355.7,3355.1,0.03206509]
[1721028409662,2.3783,3355.7,3354.8,3.25445893]
[1721028409663,2.42399152,3355.7,3354.8,3.25445893]
[1721028409817,2.3783,3355.7,3355.2,0.03203287]
[1721028410020,2.3783,3355.7,3354.8,2.44990391]
[1721028410211,2.3783,3355.7,3355.3,0.0319982]
[1721028410411,2.3783,3355.7,3354.8,4.00436284]
[1721028410659,2.3783,3355.7,3355.4,0.03195864]
[1721028410971,3.56301971,3355.7,3355.5,0.03191908]
[1721028411114,2.3783,3355.7,3355.5,0.03191908]
[1721028411314,2.3783,3355.7,3354.8,3.25445893]
[1721028411556,2.3783,3355.7,3354.9,0.78206038]
[1721028411852,2.3783,3355.7,3355.0,1.03631059]
[1721028412269,2.3783,3355.7,3355.1,0.03207733]
[1721028412673,2.3783,3355.7,3354.9,3.43251391]
[1721028412877,2.3783,3355.7,3355.2,0.03204511]
[1721028413191,2.3783,3355.7,3355.3,0.03200554]
[1721028413537,2.3783,3355.7,3354.9,3.43251391]
[1721028413851,2.3783,3355.7,3355.0,0.76326139]